bitfinex-derivatives/quotes_ETHF0:USTF0_20210111
["timestamp","ask_amount","ask_price","bid_price","bid_amount"]
[1610393228388,66.6449,963.37,962.78,2.095]
[1610393228588,66.6449,963.37,962.26,1.1039]
[1610393228787,66.6449,963.37,961.65,0.37224437]
[1610393228986,66.6449,963.37,961.65,4.437e-05]
[1610393229186,4.00959,961.66,961.65,4.437e-05]
[1610393229387,4.00959,961.66,960.78,4.42730118]
[1610393229388,4.00959,961.66,961.17,1.89856068]
[1610393229587,7.74099,961.66,960.98,2.53141424]
[1610393229788,7.74099,961.66,961.04,0.31659948]
[1610393229987,7.74099,961.66,960.79,2.3497678]
[1610393229988,7.74099,961.66,960.47,1.89959687]
[1610393230389,80.3415,961.65,960.77,0.31672646]
[1610393230589,80.3415,961.65,960.39,0.31859684]
[1610393230787,80.3415,961.65,959.81,3.16726456]
[1610393230987,80.3415,961.65,960.32,0.31677343]
[1610393231188,4.00959,960.33,959.94,0.78266716]
[1610393231389,6.48559,960.33,959.75,1.90064059]
[1610393231787,6.48559,960.33,959.94,0.59558986]
[1610393231986,6.48559,960.33,959.84,0.00097972]
[1610393232187,6.48559,960.33,959.98,0.31694678]
[1610393232389,6.48559,960.33,959.88,0.63389357]
[1610393232988,6.48559,960.33,959.88,0.31699424]
[1610393233187,4.00959,959.89,959.88,0.31699424]
[1610393233387,4.00959,959.89,959.49,1.58497119]
[1610393233388,4.00959,959.89,959.5,1.44722693]
[1610393233587,4.00959,959.89,958.73,3.80382463]
[1610393233987,4.00959,959.89,959.75,0.31699858]
[1610393234388,6.06759,959.89,959.65,9.575e-05]
[1610393234589,1.99496,959.86,959.57,0.63409129]
[1610393234789,1.99496,959.86,959.37,1.95e-05]
[1610393234991,60.0468,959.48,959.09,1.01207386]
[1610393235193,4.00959,959.1,958.89,1.47740631]
[1610393235390,11.8613,959.08,958.73,0.54106271]
[1610393235589,11.8613,959.08,958.25,2.5382431]
[1610393235789,11.8613,959.08,958.45,0.95393838]
[1610393235990,11.8613,959.08,958.35,1.5872991]
[1610393236193,11.8613,959.08,958.35,0.4697991]
[1610393236390,11.8613,959.08,958.54,0.63495161]
[1610393236590,11.8613,959.08,958.44,0.95242742]
[1610393236790,2.1055,959.09,958.25,1.27010967]
[1610393236991,71.7563,958.69,958.2,0.63516506]
[1610393237197,4.00959,958.21,958.2,0.63516506]
[1610393237391,6.43859,958.21,958.11,0.12241265]
[1610393237594,6.43859,958.21,958.13,0.31763555]
[1610393237791,8.8504,958.18,957.93,0.77251331]
[1610393237991,8.8504,958.18,957.31,1.546]
[1610393238192,8.8504,958.18,958.09,0.63524135]
[1610393238391,2.1062,958.17,958.09,0.63524135]
[1610393238591,4.00959,958.21,958.09,0.63524135]
[1610393238791,4.00959,958.21,958.12,1.27033962]
[1610393239191,4.00959,958.21,958.03,6.415e-05]
[1610393239396,4.00959,958.21,958.2,1.27029996]
[1610393239793,4.00959,958.21,958.2,0.43949996]
[1610393239992,4.00959,958.21,958.08,0.86767455]
[1610393240194,4.00959,958.21,957.99,0.40424274]
[1610393240392,4.00959,958.21,958.05,0.0987689]
[1610393240592,4.00959,958.21,957.28,2.54135123]
[1610393240792,4.00959,958.21,957.28,1.54915123]
[1610393240993,4.00959,958.21,958.04,0.31771252]
[1610393241192,2.1056,958.23,957.28,1.54915123]
[1610393241193,76.14119,958.05,957.28,1.54915123]
[1610393241393,6.09559,958.05,957.18,1.45041456]
[1610393241593,87.6099,957.28,956.8,2.54251444]
[1610393241791,87.6099,957.28,956.42,3.81377166]
[1610393241792,89.4519,957.28,956.42,3.81377166]
[1610393241994,1.99496,957.17,956.13,3.40640027]
[1610393242192,1.99496,957.17,956.04,3.81486352]
[1610393242795,1.99496,957.17,955.27,5.08648469]
[1610393242796,1.99496,957.17,956.96,0.31794263]
[1610393243195,4.00959,956.97,956.0,2.88622634]
[1610393243394,8.7655,956.94,956.73,0.08571544]
[1610393243595,79.5989,956.74,956.73,0.08571544]
[1610393243794,81.6949,956.74,956.35,1.90771544]
[1610393243996,2.096,956.74,956.35,0.61741544]
[1610393244195,88.3526,956.74,955.97,0.06616176]
[1610393244395,2.096,956.74,955.97,0.06616176]
[1610393244596,2.096,956.74,954.19,2.1058]
[1610393244597,2.096,956.74,956.67,0.31804317]
[1610393244997,2.096,956.74,956.66,0.63604709]
[1610393245196,4.00959,956.97,956.66,0.63604709]
[1610393245398,0.41667851,958.49,956.66,3.38676353]
[1610393245896,1.66671406,958.76,957.38,0.31791172]
[1610393246096,0.41745355,958.82,957.38,0.31791172]
[1610393246396,0.41745355,958.82,957.46,0.31777191]
[1610393246598,0.41753229,958.9,957.46,0.31777191]
[1610393246796,0.41753229,958.9,957.36,0.63554381]
[1610393246797,0.41792798,959.02,957.58,0.31776991]
[1610393247197,4.00959,958.11,957.49,0.11700973]
[1610393247396,4.00959,958.11,957.64,0.3177363]
[1610393247796,4.00959,958.11,957.72,0.31771354]
[1610393247998,4.00959,958.11,957.62,0.63542708]
[1610393248197,4.00959,958.11,957.51,0.31775308]
[1610393248396,4.00959,958.11,957.42,0.21035924]
[1610393248596,4.00959,958.11,957.38,0.31783127]
[1610393248798,4.00959,958.11,957.09,1.27132508]
[1610393249196,4.00959,957.1,957.02,1.27141741]
[1610393249796,4.00959,957.1,957.0,1.58913999]
[1610393249996,2.35,958.13,957.0,1.58913999]
[1610393250195,2.41,957.83,957.0,1.58913999]
[1610393250396,2.41,957.83,956.23,3.81393598]
[1610393250397,2.0646,957.82,957.53,0.31777177]
[1610393251198,2.41,957.83,957.47,0.31782509]
[1610393251199,4.00959,957.54,957.47,0.31782509]
[1610393251399,4.00959,957.54,957.28,0.95347527]
[1610393251599,4.00959,957.54,957.18,1.26997563]
[1610393251799,4.00959,957.54,957.5,0.31780808]
[1610393252399,4.00959,957.54,957.21,1.27123232]
[1610393252400,2.06,957.53,957.45,0.31780702]
[1610393252701,2.06,957.53,957.48,0.31779292]
[1610393252900,2.06,957.53,955.08,5.72027251]
[1610393253203,2.06,957.53,836.36,0.21182851]
[1610393253204,63.6243,957.49,957.3,0.31784285]
[1610393253600,0.4,957.48,957.07,0.18276985]
[1610393254000,0.4,957.48,957.01,0.31790634]
[1610393254200,1.77981052,958.51,957.01,0.31790634]
[1610393254406,1.55832,959.91,956.82,0.95371902]
[1610393254407,2.108,957.72,956.99,1.606]
[1610393254600,1.646,958.18,956.99,1.606]
[1610393254801,1.646,958.18,957.52,0.31776891]
[1610393255103,1.646,958.18,957.67,0.31771667]
[1610393255303,2.0816,958.17,957.67,0.31771667]
[1610393255503,4.00959,958.25,957.59,0.3177155]
[1610393255906,4.00959,958.25,957.55,0.31771627]
[1610393256303,4.00959,958.25,957.41,2.101]
[1610393256304,4.00959,958.25,957.51,0.11660119]
[1610393256506,2.0668,958.24,957.51,0.11660119]
[1610393256708,2.0668,958.24,957.3,0.3177587]
[1610393257106,2.0668,958.24,956.9,1.271273]
[1610393257308,4.00959,956.91,956.82,1.27138171]
[1610393257508,2.1104,956.9,956.82,0.03708171]
[1610393257709,2.1104,956.9,956.79,1.27134428]
[1610393257910,4.00959,956.91,956.79,0.83814428]
[1610393258109,4.00959,956.91,956.69,1.58918035]
[1610393258110,4.00959,956.91,956.88,0.63573567]
[1610393258311,4.00959,956.91,956.83,0.31798353]
[1610393258512,5.95259,956.91,956.83,0.31798353]
[1610393258711,5.95259,956.91,956.71,0.63604337]
[1610393258911,5.95259,956.91,956.52,1.27208674]
[1610393259112,5.95259,956.91,956.65,0.31804582]
[1610393259313,4.00959,956.66,956.65,0.31804582]
[1610393259513,6.08589,956.66,956.65,0.31804582]
[1610393259712,4.00959,956.66,956.59,0.95408949]
[1610393260011,4.00959,956.66,956.62,0.95408478]
[1610393260414,4.00959,956.66,956.59,1.27204409]
[1610393260813,4.00959,956.66,956.6,0.95416783]
[1610393261213,4.00959,956.66,956.59,0.31807888]
[1610393261613,4.00959,956.66,956.27,1.868]
[1610393261614,4.00959,956.66,956.61,0.31806784]
[1610393261913,4.00959,956.66,956.57,0.63612846]
[1610393262214,4.00959,956.66,956.6,0.31809982]
[1610393262613,4.00959,956.66,956.49,0.31812341]
[1610393262614,2.0621,956.65,956.49,0.31812341]
[1610393263013,2.0621,956.65,956.27,1.868]
[1610393263014,2.0621,956.65,956.41,0.31813702]
[1610393263212,4.00959,956.42,956.32,0.04301107]
[1610393263414,4.00959,956.42,956.38,0.31819039]
[1610393263615,4.00959,956.42,956.27,1.868]
[1610393264013,4.00959,956.42,956.35,0.31815338]
[1610393264417,2.0913,956.41,956.12,0.95451657]
[1610393264614,2.0913,956.41,956.02,1.27268876]
[1610393264815,2.0913,956.41,956.1,0.00025958]
[1610393265013,4.4113,956.41,956.1,0.00025958]
[1610393265215,4.4113,956.41,956.12,0.31824232]
[1610393265416,8.7601,956.36,956.05,0.31825848]
[1610393265816,8.7601,956.36,955.97,0.31829099]
[1610393266217,8.7601,956.36,955.93,0.31826533]
[1610393266615,8.7601,956.36,956.0,0.31828221]
[1610393266815,4.4113,956.41,955.62,1.59141105]
[1610393267016,82.116,956.3,955.86,0.31829475]
[1610393267217,82.116,956.3,955.75,0.31833887]
[1610393267416,4.00959,955.87,955.46,1.27335549]
[1610393267617,4.00959,955.87,955.5,0.9552384]
[1610393267819,4.00959,955.87,955.41,1.27365121]
[1610393268019,4.00959,955.87,954.93,2.54730241]
[1610393268020,4.00959,955.87,955.45,0.63688324]
[1610393268219,4.00959,955.87,955.61,0.31845483]
[1610393268418,4.00959,955.87,955.42,0.714329]
[1610393268622,2.086,955.86,955.62,0.3184227]
[1610393268821,2.086,955.86,955.43,0.5774908]
[1610393269021,2.086,955.86,955.33,1.2736908]
[1610393269022,4.00959,955.87,955.52,0.31846017]
[1610393269221,2.343,955.95,955.59,0.31846957]
[1610393269722,2.343,955.95,955.66,0.31846965]
[1610393269922,2.343,955.95,955.56,0.31847345]
[1610393270725,2.343,955.95,955.59,0.31845803]
[1610393270923,2.343,955.95,955.52,0.31846265]
[1610393271325,2.343,955.95,955.58,0.31845502]
[1610393271523,2.343,955.95,955.61,0.31844131]
[1610393271923,2.343,955.95,955.62,0.3184454]
[1610393272325,2.343,955.95,955.24,1.59222699]
[1610393272326,2.343,955.95,955.68,0.31843355]
[1610393272525,2.32,956.41,955.81,0.31838941]
[1610393272724,2.1075,957.1,955.81,0.31838941]
[1610393272924,2.1075,957.1,955.9,0.31835747]
[1610393273324,2.1075,957.1,955.71,0.9550724]
[1610393273325,4.00959,955.97,955.93,0.3183416]
[1610393273525,4.00959,955.97,955.95,0.31832979]
[1610393273725,2.021,956.31,955.95,0.31832979]
[1610393273927,2.021,956.31,955.71,4.00959]
[1610393273928,2.021,956.31,955.91,0.63662857]
[1610393274326,2.021,956.31,956.11,0.31827582]
[1610393274529,2.021,956.31,956.03,0.31828417]
[1610393274728,1.77,956.52,956.03,0.31828417]
[1610393274928,1.77,956.52,955.65,1.59142086]
[1610393274929,1.77,956.52,956.05,0.31828808]
[1610393275229,1.77,956.52,956.14,0.31826764]
[1610393275429,4.00959,956.15,956.14,0.31826764]
[1610393275629,4.00959,956.15,956.04,0.31824685]
[1610393276030,4.00959,956.15,956.06,0.31827007]
[1610393276234,4.00959,956.15,956.1,0.31826095]
[1610393276531,4.00959,956.15,956.08,0.31825403]
[1610393277230,4.00959,956.15,824.24,0.22360537]
[1610393277430,4.00959,956.15,955.35,4.00959]
[1610393278029,5.57259,956.15,955.35,4.00959]
[1610393278431,5.57259,956.15,954.39,5.9332]
[1610393279431,1.563,956.15,954.91,4.00959]
[1610393281335,4.00959,955.61,955.43,4.00959]
[1610393281535,1.714,955.78,955.43,4.00959]
[1610393281737,1.563,956.15,955.43,4.00959]
[1610393282135,1.77,956.52,955.43,4.00959]
[1610393282334,68.6527,958.39,956.15,0.4]
[1610393282534,8.35176615,958.84,956.15,2.075]
[1610393282734,1.38932,960.02,956.42,74.5347]
[1610393282735,6.2251,958.83,956.42,74.5347]
[1610393282938,2.052,958.83,956.42,74.5347]
[1610393283336,2.052,958.83,958.52,4.00959]
[1610393283536,2.25459,960.32,958.52,4.00959]
[1610393283735,30.0,962.01,958.52,4.00959]
[1610393284536,9.0,962.0,958.52,4.00959]
[1610393284836,30.0,961.9,958.52,4.00959]
[1610393285238,9.0,961.89,958.52,4.00959]
[1610393285439,4.00959,959.1,958.91,4.00959]
[1610393285638,2.426,959.83,958.91,4.00959]
[1610393285838,2.426,959.83,958.91,5.73059]
[1610393287238,60.9696,960.56,958.91,5.73059]
[1610393287440,4.00959,959.85,959.19,4.00959]
[1610393287638,4.00959,959.85,958.91,1.721]
[1610393287839,5.57159,959.85,958.91,1.721]
[1610393288240,5.57159,959.85,958.36,2.276]
[1610393288640,1.562,959.85,958.36,2.276]
[1610393289345,1.562,959.85,959.57,4.00959]
[1610393289544,1.562,959.85,958.09,84.9717]
[1610393289748,1.562,959.85,958.77,2.176]
[1610393290351,1.7629,959.63,957.43,60.7161]
[1610393290551,30.0,959.53,957.43,60.7161]
[1610393290952,30.0,959.43,957.43,60.7161]
[1610393291149,2.146,959.43,957.43,60.7161]
[1610393291346,4.00959,957.6,957.53,4.00959]
[1610393291545,4.00959,957.6,956.61,6.408]
[1610393291945,6.42059,957.6,956.34,79.0875]
[1610393293146,6.42059,957.6,955.08,6.3138]
[1610393293346,4.00959,956.33,955.34,74.6441]
[1610393293747,1.932,956.9,955.34,74.6441]
[1610393293947,1.932,956.9,956.04,2.181]
[1610393294148,1.932,956.9,955.72,1.537]
[1610393294748,1.932,956.9,956.16,2.0937]
[1610393294948,1.932,956.9,956.0,2.426]
[1610393295348,1.932,956.9,956.89,4.00959]
[1610393295549,4.00959,957.33,956.89,4.00959]
[1610393295748,4.00959,957.33,956.35,2.346]
[1610393295949,5.59959,957.33,956.35,2.346]
[1610393297450,5.59959,957.33,956.83,4.00959]
[1610393299455,5.59959,957.33,957.06,4.00959]
[1610393300955,1.59,957.33,956.35,2.346]
[1610393301157,2.411,957.6,956.0,2.426]
[1610393301455,4.00959,956.6,956.0,2.426]
[1610393302257,1.791,956.92,956.0,2.426]
[1610393302458,2.103,957.33,956.0,2.426]
[1610393303062,6.1505,958.46,956.0,2.426]
[1610393303256,6.1505,958.46,956.04,81.5535]
[1610393303458,4.00959,957.72,957.44,4.00959]
[1610393304458,1.624,957.87,957.44,4.00959]
[1610393304860,1.624,957.87,957.08,2.052]
[1610393305460,2.293,958.17,957.86,4.00959]
[1610393306460,4.00959,958.86,957.86,4.00959]
[1610393306461,2.1027,958.55,957.86,4.00959]
[1610393306659,4.00959,958.86,957.86,4.00959]
[1610393307060,4.00959,958.86,957.86,1.38819]
[1610393307260,4.00959,958.86,957.62,1.868]
[1610393307460,4.00959,957.63,957.35,81.2607]
[1610393307660,2.0761,958.26,957.35,2.338]
[1610393307861,2.431,958.09,957.35,2.338]
[1610393309461,2.168,958.4,958.08,4.00959]
[1610393309862,4.00959,959.02,958.08,4.00959]
[1610393310462,78.5047,960.37,958.08,4.00959]
[1610393310662,2.0628,960.29,958.08,4.00959]
[1610393310863,2.0634,960.0,958.08,4.00959]
[1610393311463,4.00959,959.47,959.15,4.00959]
[1610393311664,2.0926,959.46,959.15,4.00959]
[1610393311863,6.39559,959.47,959.15,4.00959]
[1610393312062,2.386,959.47,959.15,4.00959]
[1610393312665,2.386,959.47,958.8,2.375]
[1610393312864,2.0561,959.46,958.8,2.375]
[1610393313264,2.0561,959.46,958.8,0.1998]
[1610393313463,2.0561,959.46,958.62,4.00959]
[1610393313864,2.0561,959.46,958.31,0.4013]
[1610393314465,2.386,959.47,958.31,0.4013]
[1610393315465,4.00959,958.38,958.33,4.00959]
[1610393315666,4.00959,958.38,958.31,0.4013]
[1610393316669,4.00959,958.38,957.4,70.564]
[1610393316868,4.00959,958.38,956.45,6.3278]
[1610393317069,4.00959,958.38,956.37,2.0742]
[1610393317469,4.00959,958.38,958.37,4.00959]
[1610393317671,4.00959,958.38,957.91,1.95]
[1610393318070,2.377,958.87,957.91,1.95]
[1610393318971,2.377,958.87,958.38,0.3792]
[1610393319572,4.00959,958.39,958.38,0.3792]
[1610393320972,4.00959,958.39,957.11,72.4979]
[1610393321374,2.377,958.87,957.11,72.4979]
[1610393321574,0.55815817,1220.7,958.02,4.00959]
[1610393321575,4.00959,958.51,958.02,4.00959]
[1610393321774,2.316,958.86,958.02,4.00959]
[1610393322773,0.55815817,1220.7,958.02,4.00959]
[1610393322774,59.6635,960.38,958.02,4.00959]
[1610393323175,8.33517669,960.75,958.02,4.00959]
[1610393323575,4.00959,960.28,960.03,4.00959]
[1610393323774,5.92059,960.28,960.03,4.00959]
[1610393323977,5.92059,960.28,959.36,69.7557]
[1610393324575,1.911,960.28,959.36,69.7557]
[1610393325176,2.0931,960.27,959.36,69.7557]
[1610393325576,4.00959,960.26,959.85,4.00959]
[1610393326476,2.231,960.53,959.85,4.00959]
[1610393326677,2.0715,960.52,959.85,4.00959]
[1610393326878,2.231,960.53,959.85,4.00959]
[1610393327476,4.00959,960.36,960.22,4.00959]
[1610393327877,4.00959,960.36,959.75,2.381]
[1610393328478,1.716,960.57,959.75,2.381]
[1610393329278,2.0902,960.56,959.75,2.381]
[1610393329478,1.716,960.57,960.33,4.00959]
[1610393329679,1.716,960.57,959.75,2.381]
[1610393330479,3.7825,960.57,959.75,2.381]
[1610393330780,1.716,960.57,959.75,2.381]
[1610393331680,1.716,960.57,956.14,30.0]
[1610393331880,2.0906,960.56,958.81,75.3813]
[1610393332780,2.0906,960.56,924.81,381.923]
[1610393332980,86.0047,960.29,957.77,70.1135]
[1610393333182,2.0724,960.28,958.02,6.4148]
[1610393333981,2.0724,960.28,957.77,70.1135]
[1610393334184,4.00959,958.19,957.87,4.00959]
[1610393334383,4.00959,958.19,957.13,5.9791]
[1610393335182,4.00959,958.19,957.12,85.0717]
[1610393335382,4.00959,958.19,956.38,64.7578]
[1610393335582,2.0579,958.18,956.38,64.7578]
[1610393335781,4.00959,958.19,956.38,64.7578]
[1610393335982,4.00959,958.19,956.38,67.1278]
[1610393336184,4.00959,957.73,957.22,4.00959]
[1610393336583,6.05859,957.73,957.22,4.00959]
[1610393337483,6.05859,957.73,956.38,67.1278]
[1610393337983,6.05859,957.73,956.38,2.37]
[1610393338183,2.049,957.73,956.92,4.00959]
[1610393340184,2.049,957.73,956.33,65.4531]
[1610393340185,4.00959,957.69,957.35,4.00959]
[1610393341087,2.049,957.73,957.35,4.00959]
[1610393341486,1.513,958.22,957.35,4.00959]
[1610393341687,0.56818496,1218.1,957.35,4.00959]
[1610393341886,81.0481,959.02,957.35,4.00959]
[1610393342086,4.00959,958.23,958.07,4.00959]
[1610393342286,5.73859,958.23,958.07,4.00959]
[1610393342486,2.1013,958.22,956.9,69.7853]
[1610393342686,5.73859,958.23,956.9,69.7853]
[1610393343688,80.4367,958.18,956.76,2.169]
[1610393344087,80.4367,958.18,956.76,0.9863]
[1610393344287,80.4367,958.18,956.76,0.62]
[1610393344487,80.4367,958.18,956.06,82.6972]
[1610393346190,2.0598,958.22,955.36,2.0954]
[1610393346390,2.0598,958.22,956.01,7.9437]
[1610393346590,2.0598,958.22,956.82,83.4113]
[1610393346791,2.0598,958.22,956.01,7.9437]
[1610393346991,2.0598,958.22,956.08,80.2137]
[1610393350194,4.00959,957.23,957.01,4.00959]
[1610393350395,5.62259,957.23,957.01,4.00959]
[1610393350795,5.62259,957.23,956.08,80.2137]
[1610393352197,5.62259,957.23,956.65,4.00959]
[1610393352596,5.62259,957.23,956.08,80.2137]
[1610393354199,4.00959,956.94,956.5,4.00959]
[1610393354399,5.50259,956.94,956.08,80.2137]
[1610393355500,5.50259,956.94,956.01,6.4487]
[1610393355902,5.50259,956.94,955.49,76.7269]
[1610393356303,4.00959,956.36,956.14,4.00959]
[1610393358306,2.147,956.44,956.14,4.00959]
[1610393360308,2.117,956.44,956.32,4.00959]
[1610393360709,1.613,957.23,956.32,4.00959]
[1610393360910,0.7365,957.23,956.32,4.00959]
[1610393361111,110.8044835,958.03,956.32,4.00959]
[1610393361310,2.0808,957.67,956.32,4.00959]
[1610393361513,110.79893837,958.11,956.32,4.00959]
[1610393361715,30.55513134,958.11,956.32,4.00959]
[1610393361913,110.80178453,958.12,956.32,4.00959]
[1610393362113,110.81334867,958.06,956.32,4.00959]
[1610393362312,110.81334867,958.06,956.83,4.00959]
[1610393362513,110.79124289,958.09,956.83,4.00959]
[1610393362913,1.729,958.23,956.83,4.00959]
[1610393363113,110.75646505,958.38,956.83,4.00959]
[1610393363313,0.65842611,1195.6,956.83,4.00959]
[1610393363314,110.74013065,958.54,956.83,4.00959]
[1610393363514,110.71982683,958.67,956.83,4.00959]
[1610393363917,110.69919214,958.85,956.83,4.00959]
[1610393364114,110.69881631,959.0,956.83,4.00959]
[1610393364315,4.00959,958.59,958.14,4.00959]
[1610393364515,2.0782,958.58,958.14,4.00959]
[1610393365516,2.0782,958.58,958.15,2.1067]
[1610393365717,1.505,958.59,958.14,4.00959]
[1610393366317,1.505,958.59,957.75,85.6542]
[1610393366516,1.505,958.59,957.16,1.832]
[1610393367516,2.0563,958.58,957.16,1.832]
[1610393367717,1.505,958.59,957.16,1.832]
[1610393368118,1.505,958.59,957.5,86.215]
[1610393368318,4.00959,958.57,957.8,4.00959]
[1610393368517,1.505,958.59,957.8,4.00959]
[1610393368518,1.505,958.59,957.82,12.1316]
[1610393369519,88.69169189,959.41,957.82,12.1316]
[1610393369720,88.68265932,959.48,957.8,4.00959]
[1610393369918,88.66646995,959.69,957.8,4.00959]
[1610393370319,4.00959,959.03,958.73,4.00959]
[1610393370720,5.67559,959.03,958.73,4.00959]
[1610393372123,1.666,959.03,958.73,4.00959]
[1610393372325,1.666,959.03,958.85,4.00959]
[1610393372722,1.666,959.03,958.34,64.7317]
[1610393373723,1.666,959.03,957.51,1.692]
[1610393373924,1.666,959.03,957.79,61.2163]
[1610393374326,4.00959,958.28,957.87,4.00959]
[1610393374526,2.333,958.28,957.87,4.00959]
[1610393375927,2.333,958.28,957.21,59.6753]
[1610393376326,4.00959,957.61,957.16,1.832]
[1610393376528,4.00959,957.61,956.8,1.927]
[1610393376727,4.00959,957.61,956.81,2.0947]
[1610393376927,80.3192,957.54,956.81,2.37]
[1610393377328,82.2902,957.54,955.83,63.3045]
[1610393377529,0.4,956.8,955.28,6.1646]
[1610393377929,2.727,956.8,955.1,87.5956]
[1610393378330,4.00959,955.94,955.91,4.00959]
[1610393378530,4.00959,955.94,955.1,87.5956]
[1610393378732,5.59659,955.94,954.63,6.0827]
[1610393378930,5.59659,955.94,953.9,2.1121]
[1610393379132,5.59659,955.94,954.04,72.8266]
[1610393379436,5.59659,955.94,954.04,74.7806]
[1610393380440,4.00959,955.33,954.04,74.7806]
[1610393380635,4.00959,955.33,954.04,1.954]
[1610393380836,5.55559,955.33,954.04,1.954]
[1610393381635,2.1194,955.32,954.04,1.954]
[1610393381836,5.55559,955.33,954.04,1.954]
[1610393382438,1.546,955.33,954.04,1.954]
[1610393382639,1.546,955.33,954.05,2.1252]
[1610393383238,2.1066,955.33,954.05,2.1252]
[1610393383638,1.83,955.62,954.05,2.1252]
[1610393384037,59.6891,955.85,954.07,11.081]
[1610393384238,0.4,956.8,954.05,2.1252]
[1610393384439,4.00959,955.66,955.18,4.00959]
[1610393385241,2.276,955.89,955.18,4.00959]
[1610393386040,70.1693,956.63,955.18,4.00959]
[1610393386441,4.00959,956.03,955.63,4.00959]
[1610393386641,4.00959,956.03,955.09,1.915]
[1610393388341,4.00959,955.1,955.09,1.915]
[1610393388542,4.00959,955.1,954.57,4.00959]
[1610393389843,4.00959,955.1,740.0,2.0]
[1610393390044,58.9361,954.91,953.33,6.3783]
[1610393390244,2.372,955.51,953.33,8.4835]
[1610393390445,60.3403,955.28,953.33,1.887]
[1610393390644,1.542,955.28,954.43,4.00959]
[1610393390846,1.542,955.28,954.42,2.272]
[1610393391245,85.77,955.15,954.42,2.272]
[1610393391846,1.542,955.28,954.42,2.272]
[1610393392245,75.734,955.2,954.42,2.272]
[1610393392446,1.542,955.28,954.42,2.272]
[1610393392645,4.00959,954.43,954.42,2.272]
[1610393392846,75.36029,954.43,953.33,1.887]
[1610393394650,4.00959,954.07,953.82,4.00959]
[1610393395249,71.3507,954.43,953.82,4.00959]
[1610393395451,1.578,954.84,953.82,6.05559]
[1610393396659,1.605,955.05,954.83,4.00959]
[1610393397054,89.03420684,956.06,954.83,4.00959]
[1610393397252,89.01109377,956.23,954.83,4.00959]
[1610393397451,73.8599,956.3,954.83,6.19959]
[1610393397652,88.99631651,956.38,954.83,2.19]
[1610393397852,71.4052,956.12,954.83,2.19]
[1610393398052,73.7342,956.12,954.83,2.19]
[1610393398652,4.00959,954.94,953.33,1.887]
[1610393398853,4.00959,954.94,953.38,67.183]
[1610393400554,4.00959,954.31,953.83,4.00959]
[1610393400954,4.00959,954.31,953.38,67.183]
[1610393401154,4.00959,954.31,953.33,1.887]
[1610393401354,4.00959,954.31,952.81,69.5176]
[1610393402554,4.00959,954.31,953.94,4.00959]
[1610393402754,1.699,954.38,953.94,4.00959]
[1610393402954,1.962,955.05,953.94,4.00959]
[1610393403153,89.0865336,955.56,953.94,4.00959]
[1610393403154,89.08479412,955.7,953.94,4.00959]
[1610393403355,89.08479412,955.7,953.94,6.38159]
[1610393403554,64.8821,955.71,953.94,6.38159]
[1610393404556,4.00959,954.89,954.14,4.00959]
[1610393405457,4.00959,954.89,953.94,2.372]
[1610393406655,1.763,954.97,953.94,2.372]
[1610393407459,2.0899,954.96,953.94,2.372]
[1610393407657,1.763,954.97,953.94,2.372]
[1610393408257,1.763,954.97,953.61,1.53]
[1610393408458,30.0,954.91,740.0,2.0]
[1610393408658,4.00959,953.13,952.94,4.00959]
[1610393409058,4.00959,953.13,952.03,2.0805]
[1610393409458,4.00959,953.13,951.9,76.1905]
[1610393409860,74.0323,953.57,951.9,76.1905]